fUSD/lending_fUSD_20260420
["ID","MTS","AMOUNT","RATE_DAILY","PERIOD"]
[420875185,1776693033748,-150.0,8.485e-05,2]
[420875187,1776693033756,-150.0,8.485e-05,2]
[420875189,1776693033766,-150.0,8.506e-05,2]
[420875191,1776693033776,-500.0,8.525e-05,2]
[420875193,1776693033786,-6872.20570589,8.525e-05,2]
[420875195,1776693033796,-151.0,8.525e-05,2]
[420875197,1776693033805,-150.0,8.535e-05,2]
[420875199,1776693033815,-276.01072962,8.539e-05,2]
[420875201,1776693033824,-4260.25516247,8.54e-05,2]
[420875203,1776693033834,-150.99,8.54e-05,2]
[420875205,1776693033843,-1483.24,8.54e-05,2]
[420875207,1776693033853,-299.99,8.54e-05,2]
[420875209,1776693033862,-9999.99,8.54e-05,2]
[420875211,1776693033871,-822.72,8.54e-05,2]
[420875213,1776693033882,-4921.67,8.54e-05,2]
[420875215,1776693033891,-9999.99,8.54e-05,2]
[420875217,1776693033901,-1405.38,8.54e-05,2]
[420875219,1776693033911,-20035.22,8.54e-05,2]
[420875221,1776693033920,-150.0,8.541e-05,2]
[420875223,1776693033929,-150.0,8.549e-05,2]
[420875225,1776693033938,-150.0,8.549e-05,2]
[420875227,1776693033947,-500.0,8.57e-05,2]
[420875229,1776693033957,-150.0,8.574e-05,2]
[420875231,1776693033966,-150.0,8.574e-05,2]
[420875233,1776693033976,-500.0,8.58e-05,2]
[420875235,1776693033986,-327.70121391,8.58e-05,2]
[420875237,1776693033995,-500.0,8.58e-05,2]
[420875239,1776693034005,-616.81182885,8.58e-05,2]
[420875241,1776693034014,-500.0,8.58e-05,2]
[420875243,1776693034024,-500.0,8.58e-05,2]
[420875245,1776693034033,-500.0,8.58e-05,2]
[420875247,1776693034042,-500.0,8.58e-05,2]
[420875249,1776693034052,-500.0,8.58e-05,2]
[420875250,1776693034061,-396.46904823,8.58e-05,2]
[420875251,1776693034071,-500.0,8.58e-05,2]
[420875252,1776693034081,-500.0,8.58e-05,2]
[420875253,1776693034090,-500.0,8.58e-05,2]
[420875254,1776693034099,-500.0,8.58e-05,2]
[420875255,1776693034109,-151.0,8.58e-05,2]
[420875256,1776693034119,-500.0,8.581e-05,2]
[420875257,1776693034128,-200.0,8.581e-05,2]
[420875258,1776693034137,-2000.0,8.581e-05,2]
[420875259,1776693034147,-1600.0,8.581e-05,2]
[420875260,1776693034157,-260.67,8.581e-05,2]
[420875261,1776693034167,-4902.79,8.581e-05,2]
[420875262,1776693034176,-150.0,8.591e-05,2]
[420875263,1776693034185,-150.0,8.597e-05,2]
[420875264,1776693034195,-150.0,8.634e-05,2]
[420875265,1776693034204,-150.0,8.634e-05,2]
[420875266,1776693034214,-150.0,8.634e-05,2]
[420875267,1776693034223,-150.0,8.634e-05,2]
[420875268,1776693034232,-500.0,8.635e-05,2]
[420875269,1776693034242,-151.0,8.635e-05,2]
[420875270,1776693034252,-150.0,8.652e-05,2]
[420875271,1776693034261,-351.81980635,8.658e-05,2]
[420875272,1776693034271,-150.0,8.664e-05,2]
[420875273,1776693034280,-150.0,8.676e-05,2]
[420875274,1776693034290,-150.0,8.676e-05,2]
[420875275,1776693034300,-500.0,8.69e-05,2]
[420875276,1776693034309,-151.0,8.69e-05,2]
[420875277,1776693034319,-155.0,8.701e-05,2]
[420875278,1776693034329,-150.0,8.702e-05,2]
[420875279,1776693034338,-500.0,8.702e-05,2]
[420875280,1776693034347,-500.0,8.702e-05,2]
[420875281,1776693034356,-150.0,8.702e-05,2]
[420875282,1776693034366,-150.0,8.702e-05,2]
[420875283,1776693034375,-500.0,8.702e-05,2]
[420875284,1776693034385,-150.0,8.702e-05,2]
[420875285,1776693034394,-500.0,8.702e-05,2]
[420875286,1776693034403,-150.0,8.702e-05,2]
[420875287,1776693034413,-500.0,8.702e-05,2]
[420875288,1776693034422,-154.83276978,8.702e-05,2]
[420875289,1776693034432,-500.0,8.702e-05,2]
[420875290,1776693034441,-150.0,8.702e-05,2]
[420875291,1776693034450,-500.0,8.702e-05,2]
[420875292,1776693034460,-150.0,8.702e-05,2]
[420875293,1776693034469,-500.0,8.702e-05,2]
[420875294,1776693034478,-600.0,8.702e-05,2]
[420875295,1776693034488,-182.4399254,8.702e-05,2]
[420875296,1776693034497,-908.0,8.702e-05,2]
[420875297,1776693034506,-908.0,8.702e-05,2]
[420875298,1776693034516,-908.0,8.702e-05,2]
[420875299,1776693034525,-908.0,8.702e-05,2]
[420875300,1776693034534,-908.0,8.702e-05,2]
[420875301,1776693034544,-908.0,8.702e-05,2]
[420875302,1776693034553,-908.0,8.702e-05,2]
[420875303,1776693034562,-908.0,8.702e-05,2]
[420875304,1776693034572,-908.0,8.702e-05,2]
[420875305,1776693034582,-908.0,8.702e-05,2]
[420875306,1776693034591,-908.0,8.702e-05,2]
[420875307,1776693034602,-908.0,8.702e-05,2]
[420875308,1776693034612,-908.0,8.702e-05,2]
[420875309,1776693034621,-908.0,8.702e-05,2]
[420875310,1776693034630,-908.0,8.702e-05,2]
[420875311,1776693034640,-908.0,8.702e-05,2]
[420875312,1776693034649,-908.0,8.702e-05,2]
[420875313,1776693034658,-908.0,8.702e-05,2]
[420875314,1776693034668,-908.0,8.702e-05,2]
[420875315,1776693034677,-908.0,8.702e-05,2]
[420875316,1776693034687,-908.0,8.702e-05,2]
[420875317,1776693034696,-908.0,8.702e-05,2]
[420875318,1776693034705,-908.0,8.702e-05,2]
[420875319,1776693034714,-921.18093588,8.702e-05,2]
[420875320,1776693034723,-500.0,8.702e-05,2]
[420875321,1776693034732,-500.0,8.702e-05,2]
[420875322,1776693034741,-500.0,8.702e-05,2]
[420875323,1776693034750,-500.0,8.702e-05,2]
[420875324,1776693034760,-500.0,8.702e-05,2]
[420875325,1776693034770,-500.0,8.702e-05,2]
[420875326,1776693034780,-691.0,8.702e-05,2]
[420875327,1776693034788,-500.0,8.702e-05,2]
[420875328,1776693034796,-691.0,8.702e-05,2]
[420875329,1776693034805,-500.0,8.702e-05,2]
[420875330,1776693034815,-691.0,8.702e-05,2]
[420875331,1776693034824,-691.0,8.702e-05,2]
[420875332,1776693034833,-500.0,8.702e-05,2]
[420875333,1776693034843,-691.0,8.702e-05,2]
[420875334,1776693034852,-363.84800281,8.702e-05,2]
[420875335,1776693034861,-691.0,8.702e-05,2]
[420875336,1776693034871,-691.0,8.702e-05,2]
[420875337,1776693034880,-691.0,8.702e-05,2]
[420875338,1776693034889,-691.0,8.702e-05,2]
[420875339,1776693034899,-691.0,8.702e-05,2]
[420875340,1776693034908,-691.0,8.702e-05,2]
[420875341,1776693034918,-691.0,8.702e-05,2]
[420875342,1776693034927,-691.0,8.702e-05,2]
[420875343,1776693034937,-691.0,8.702e-05,2]
[420875344,1776693034946,-691.0,8.702e-05,2]
[420875345,1776693034955,-691.0,8.702e-05,2]
[420875346,1776693034964,-691.0,8.702e-05,2]
[420875347,1776693034974,-691.0,8.702e-05,2]
[420875348,1776693034983,-691.0,8.702e-05,2]
[420875349,1776693034993,-691.0,8.702e-05,2]
[420875350,1776693035002,-691.0,8.702e-05,2]
[420875351,1776693035012,-500.0,8.702e-05,2]
[420875352,1776693035022,-500.0,8.702e-05,2]
[420875353,1776693035031,-500.0,8.702e-05,2]
[420875354,1776693035041,-500.0,8.702e-05,2]
[420875355,1776693035050,-691.0,8.702e-05,2]
[420875356,1776693035060,-500.0,8.702e-05,2]
[420875357,1776693035068,-500.0,8.702e-05,2]
[420875358,1776693035078,-500.0,8.702e-05,2]
[420875359,1776693035087,-500.0,8.702e-05,2]
[420875360,1776693035096,-500.0,8.702e-05,2]
[420875361,1776693035106,-500.0,8.702e-05,2]
[420875362,1776693035115,-459.20054883,8.702e-05,2]
[420875363,1776693035125,-1524.0,8.702e-05,2]
[420875364,1776693035134,-691.0,8.702e-05,2]
[420875365,1776693035143,-1524.0,8.702e-05,2]
[420875366,1776693035153,-1524.0,8.702e-05,2]
[420875367,1776693035162,-1524.0,8.702e-05,2]
[420875368,1776693035171,-1524.0,8.702e-05,2]
[420875369,1776693035180,-1524.0,8.702e-05,2]
[420875370,1776693035190,-1524.0,8.702e-05,2]
[420875371,1776693035199,-1524.0,8.702e-05,2]
[420875372,1776693035209,-1524.0,8.702e-05,2]
[420875373,1776693035219,-1524.0,8.702e-05,2]
[420875374,1776693035228,-1524.0,8.702e-05,2]
[420875375,1776693035238,-1524.0,8.702e-05,2]
[420875376,1776693035248,-1524.0,8.702e-05,2]
[420875377,1776693035258,-1524.0,8.702e-05,2]
[420875378,1776693035267,-1524.0,8.702e-05,2]
[420875379,1776693035277,-1524.0,8.702e-05,2]
[420875380,1776693035286,-710.56133224,8.702e-05,2]
[420875381,1776693035296,-1524.0,8.702e-05,2]
[420875382,1776693035305,-1524.0,8.702e-05,2]
[420875383,1776693035314,-1524.0,8.702e-05,2]
[420875384,1776693035324,-1524.0,8.702e-05,2]
[420875385,1776693035333,-1524.0,8.702e-05,2]
[420875386,1776693035342,-1524.0,8.702e-05,2]
[420875387,1776693035351,-1524.0,8.702e-05,2]
[420875388,1776693035360,-1529.13919071,8.702e-05,2]
[420875389,1776693035370,-150.0,8.702e-05,2]
[420875390,1776693035379,-150.0,8.702e-05,2]
[420875391,1776693035388,-165.17615804,8.702e-05,2]
[420875392,1776693035397,-500.0,8.702e-05,2]
[420875393,1776693035406,-500.0,8.702e-05,2]
[420875394,1776693035415,-500.0,8.702e-05,2]
[420875395,1776693035424,-500.0,8.702e-05,2]
[420875396,1776693035433,-500.0,8.702e-05,2]
[420875397,1776693035442,-500.0,8.702e-05,2]
[420875398,1776693035451,-500.0,8.702e-05,2]
[420875399,1776693035460,-500.0,8.702e-05,2]
[420875400,1776693035932,-500.0,8.702e-05,2]
[420875401,1776693035951,-500.0,8.702e-05,2]
[420875402,1776693035960,-150.0,8.702e-05,2]
[420875403,1776693035970,-500.0,8.702e-05,2]
[420875404,1776693035979,-150.0,8.702e-05,2]
[420875405,1776693035989,-150.0,8.702e-05,2]
[420875406,1776693035999,-215.90236649,8.702e-05,2]
[420875407,1776693036008,-500.0,8.702e-05,2]
[420875408,1776693036018,-500.0,8.702e-05,2]
[420875409,1776693036027,-170.10723715,8.702e-05,2]
[420875410,1776693036037,-150.0,8.702e-05,2]
[420875411,1776693036046,-500.0,8.702e-05,2]
[420875412,1776693036056,-500.0,8.702e-05,2]
[420875413,1776693036065,-447.42605228,8.702e-05,2]
[420875414,1776693036074,-500.0,8.702e-05,2]
[420875415,1776693036083,-500.0,8.702e-05,2]
[420875416,1776693036093,-500.0,8.702e-05,2]
[420875417,1776693036102,-500.0,8.702e-05,2]
[420875418,1776693036112,-500.0,8.702e-05,2]
[420875419,1776693036122,-400.50178224,8.702e-05,2]
[420875420,1776693036131,-150.0,8.702e-05,2]
[420875421,1776693036140,-150.0,8.702e-05,2]
[420875422,1776693036150,-500.0,8.702e-05,2]
[420875423,1776693036159,-500.0,8.702e-05,2]
[420875424,1776693036167,-718.0,8.702e-05,2]
[420875425,1776693036176,-500.0,8.702e-05,2]
[420875426,1776693036187,-500.0,8.702e-05,2]
[420875427,1776693036196,-718.0,8.702e-05,2]
[420875428,1776693036206,-500.0,8.702e-05,2]
[420875429,1776693036215,-178.88867744,8.702e-05,2]
[420875430,1776693036224,-500.0,8.702e-05,2]
[420875431,1776693036234,-718.0,8.702e-05,2]
[420875432,1776693036243,-500.0,8.702e-05,2]
[420875433,1776693036252,-500.0,8.702e-05,2]
[420875434,1776693036262,-718.0,8.702e-05,2]
[420875435,1776693036272,-500.0,8.702e-05,2]
[420875436,1776693036282,-718.0,8.702e-05,2]
[420875437,1776693036292,-500.0,8.702e-05,2]
[420875438,1776693036301,-500.0,8.702e-05,2]
[420875439,1776693036311,-718.0,8.702e-05,2]
[420875440,1776693036319,-500.0,8.702e-05,2]
[420875441,1776693036329,-473.06178426,8.702e-05,2]
[420875442,1776693036338,-718.0,8.702e-05,2]
[420875443,1776693036347,-500.0,8.702e-05,2]
[420875444,1776693036356,-718.0,8.702e-05,2]
[420875445,1776693036365,-500.0,8.702e-05,2]
[420875446,1776693036374,-718.0,8.702e-05,2]
[420875447,1776693036383,-500.0,8.702e-05,2]
[420875448,1776693036392,-718.0,8.702e-05,2]
[420875449,1776693036402,-500.0,8.702e-05,2]
[420875450,1776693036411,-718.0,8.702e-05,2]
[420875451,1776693036420,-500.0,8.702e-05,2]
[420875452,1776693036429,-718.0,8.702e-05,2]
[420875453,1776693036438,-500.0,8.702e-05,2]
[420875454,1776693036447,-718.0,8.702e-05,2]
[420875455,1776693036456,-500.0,8.702e-05,2]
[420875456,1776693036464,-718.0,8.702e-05,2]
[420875457,1776693036474,-500.0,8.702e-05,2]
[420875458,1776693036483,-718.0,8.702e-05,2]
[420875459,1776693036492,-500.0,8.702e-05,2]
[420875460,1776693036501,-718.0,8.702e-05,2]
[420875461,1776693036511,-500.0,8.702e-05,2]
[420875462,1776693036520,-718.0,8.702e-05,2]
[420875463,1776693036529,-500.0,8.702e-05,2]
[420875464,1776693036538,-718.0,8.702e-05,2]
[420875465,1776693036547,-374.29176276,8.702e-05,2]
[420875466,1776693036556,-718.0,8.702e-05,2]
[420875467,1776693036566,-150.0,8.702e-05,2]
[420875468,1776693036575,-500.0,8.702e-05,2]
[420875469,1776693036583,-500.0,8.702e-05,2]
[420875470,1776693036592,-718.0,8.702e-05,2]
[420875471,1776693036602,-500.0,8.702e-05,2]
[420875472,1776693036611,-500.0,8.702e-05,2]
[420875473,1776693036620,-500.0,8.702e-05,2]
[420875474,1776693036629,-500.0,8.702e-05,2]
[420875475,1776693036638,-500.0,8.702e-05,2]
[420875476,1776693036647,-500.0,8.702e-05,2]
[420875477,1776693036656,-500.0,8.702e-05,2]
[420875478,1776693036665,-500.0,8.702e-05,2]
[420875479,1776693036674,-718.0,8.702e-05,2]
[420875480,1776693036684,-500.0,8.702e-05,2]
[420875481,1776693036693,-500.0,8.702e-05,2]
[420875482,1776693036703,-235.36257079,8.702e-05,2]
[420875483,1776693036712,-718.0,8.702e-05,2]
[420875484,1776693036721,-718.0,8.702e-05,2]
[420875485,1776693036731,-732.14193434,8.702e-05,2]
[420875486,1776693036740,-500.0,8.702e-05,2]
[420875487,1776693036749,-500.0,8.702e-05,2]
[420875488,1776693036758,-500.0,8.702e-05,2]
[420875489,1776693036768,-500.0,8.702e-05,2]
[420875490,1776693036776,-500.0,8.702e-05,2]
[420875491,1776693036786,-500.0,8.702e-05,2]
[420875492,1776693036794,-500.0,8.702e-05,2]
[420875493,1776693036803,-500.0,8.702e-05,2]
[420875494,1776693036812,-500.0,8.702e-05,2]
[420875495,1776693036821,-500.0,8.702e-05,2]
[420875496,1776693036831,-500.0,8.702e-05,2]
[420875497,1776693036839,-500.0,8.702e-05,2]
[420875498,1776693036849,-372.01730652,8.702e-05,2]
[420875499,1776693036858,-500.0,8.702e-05,2]
[420875500,1776693036867,-240.0,8.702e-05,2]
[420875501,1776693036877,-150.0,8.708e-05,2]
[420875502,1776693036886,-150.0,8.719e-05,2]
[420875503,1776693036895,-1207.2,8.727e-05,2]
[420875504,1776693036905,-150.0,8.733e-05,2]
[420875505,1776693036915,-500.0,8.745e-05,2]
[420875506,1776693036924,-151.0,8.745e-05,2]
[420875507,1776693036933,-150.0,8.753e-05,2]
[420875508,1776693036942,-150.0,8.753e-05,2]
[420875509,1776693036952,-150.0,8.761e-05,2]
[420875510,1776693036962,-150.0,8.764e-05,2]
[420875511,1776693036971,-1256.0,8.787e-05,2]
[420875512,1776693036982,-500.0,8.8e-05,2]
[420875513,1776693036992,-151.0,8.8e-05,2]
[420875514,1776693037001,-150.0,8.804e-05,2]
[420875515,1776693037010,-150.0,8.804e-05,2]
[420875516,1776693037019,-150.0,8.82e-05,2]
[420875517,1776693037029,-150.0,8.832e-05,2]
[420875518,1776693037038,-150.0,8.842e-05,2]
[420875519,1776693037048,-150.0,8.846e-05,2]
[420875520,1776693037057,-500.0,8.855e-05,2]
[420875521,1776693037067,-151.0,8.855e-05,2]
[420875522,1776693037076,-476.0,8.858e-05,5]
[420875523,1776693037086,-150.0,8.876e-05,2]
[420875524,1776693037095,-150.0,8.889e-05,2]
[420875525,1776693037104,-500.0,8.91e-05,2]
[420875526,1776693037114,-151.0,8.91e-05,2]
[420875527,1776693037123,-500.0,8.913e-05,2]
[420875528,1776693037133,-500.0,8.913e-05,2]
[420875529,1776693037142,-500.0,8.913e-05,2]
[420875530,1776693037152,-349.55632459,8.913e-05,2]
[420875531,1776693037162,-160.12836282,8.913e-05,2]
[420875532,1776693037171,-500.0,8.913e-05,2]
[420875533,1776693037181,-4647.8221142,8.92e-05,2]
[420875534,1776693037190,-23538.24808601,8.925e-05,2]
[420875535,1776693037200,-242.52360914,8.932e-05,2]
[420875536,1776693037209,-150.0,8.932e-05,2]
[420875537,1776693037218,-150.0,8.932e-05,2]
[420875538,1776693037228,-150.0,8.932e-05,2]
[420875539,1776693037237,-150.0,8.932e-05,2]
[420875540,1776693037247,-150.00000001,8.932e-05,2]
[420875541,1776693037256,-259.74988373,8.932e-05,2]
[420875542,1776693037266,-150.0,8.932e-05,2]
[420875543,1776693037277,-150.00000001,8.932e-05,2]
[420875544,1776693037286,-150.0,8.932e-05,2]
[420875545,1776693037295,-150.0,8.932e-05,2]
[420875546,1776693037305,-150.0,8.932e-05,2]
[420875547,1776693037314,-250.0,8.932e-05,2]
[420875548,1776693037323,-250.0,8.932e-05,2]
[420875549,1776693037333,-1000.0,8.932e-05,2]
[420875550,1776693037342,-1000.0,8.932e-05,2]
[420875551,1776693037351,-259.0,8.94e-05,5]
[420875552,1776693037361,-160.0,8.944e-05,2]
[420875553,1776693037370,-711.621891,8.944e-05,2]
[420875554,1776693037380,-1263.243782,8.944e-05,2]
[420875555,1776693037390,-280.00437,8.944e-05,2]
[420875556,1776693037399,-160.0,8.944e-05,2]
[420875557,1776693037408,-272.321415,8.944e-05,2]
[420875558,1776693037418,-384.64283,8.944e-05,2]
[420875559,1776693037428,-160.0,8.944e-05,2]
[420875560,1776693037438,-619.690449,8.944e-05,2]
[420875561,1776693037447,-1079.380898,8.944e-05,2]
[420875562,1776693037457,-160.0,8.944e-05,2]
[420875563,1776693037467,-160.0,8.944e-05,2]
[420875564,1776693037477,-297.204999,8.944e-05,2]
[420875565,1776693037487,-434.409999,8.944e-05,2]
[420875566,1776693037496,-298.320388,8.944e-05,2]
[420875567,1776693037506,-1118.69316756,8.952e-05,3]
[420875568,1776693037516,-150.0,8.96e-05,2]
[420875569,1776693037528,-500.0,8.965e-05,2]
[420875570,1776693037538,-151.0,8.965e-05,2]
[420875571,1776693037548,-160.10145152,8.973e-05,2]
[420875572,1776693037557,-500.0,8.973e-05,2]
[420875573,1776693037567,-500.0,8.973e-05,2]
[420875574,1776693037577,-500.0,8.973e-05,2]
[420875575,1776693037587,-500.32969981,8.973e-05,2]
[420875576,1776693037597,-167.90417718,8.973e-05,2]
[420875577,1776693037606,-500.0,8.973e-05,2]
[420875578,1776693037616,-500.0,8.973e-05,2]
[420875579,1776693037626,-500.0,8.973e-05,2]
[420875580,1776693037636,-500.0,8.973e-05,2]
[420875581,1776693037648,-500.0,8.973e-05,2]
[420875582,1776693037657,-316.77936515,8.973e-05,2]
[420875583,1776693037667,-211.39959994,8.973e-05,2]
[420875584,1776693037678,-469.65061499,8.98e-05,2]
[420875585,1776693037688,-3009.8366492,8.996e-05,2]
[420875586,1776693037698,-3009.8366492,8.996e-05,2]
[420875587,1776693037707,-334.9344153,8.996e-05,2]
[420875588,1776693037718,-9467.0123647,8.996e-05,2]
[420875589,1776693037728,-7411.0094015,8.996e-05,2]
[420875590,1776693037738,-125133.44823684,8.996e-05,2]
[420875591,1776693037757,-7616.24766205,8.996e-05,2]
[420875592,1776693037770,-28630.03525761,8.996e-05,2]
[420875593,1776693037780,-15055.07208719,8.996e-05,2]
[420875594,1776693037792,-88845.53823251,8.996e-05,2]
[420875595,1776693037803,-151.0,8.996e-05,2]
[420875596,1776693037813,-151.0,8.996e-05,2]
[420875597,1776693037824,-151.0,8.996e-05,2]
[420875598,1776693037833,-151.0,8.996e-05,2]
[420875599,1776693037843,-1270.017594,8.996e-05,2]
[420875600,1776693037852,-1270.017594,8.996e-05,2]
[420875601,1776693037863,-1270.017594,8.996e-05,2]
[420875602,1776693037873,-1270.017594,8.996e-05,2]
[420875603,1776693037882,-176.62370941,9e-05,3]
[420875604,1776693037894,-10912.4704341,9e-05,3]
[420875605,1776693037904,-1207.2,9.001e-05,2]
[420875606,1776693037914,-201.93286099,9.018e-05,2]
[420875607,1776693037924,-200.0,9.018e-05,2]
[420875608,1776693037934,-1377.42282659,9.018e-05,2]
[420875609,1776693037944,-334.36358958,9.018e-05,2]
[420875614,1776693038851,-436.65389687,9.018e-05,2]
[420875615,1776693038861,-181.08010149,9.018e-05,2]
[420875616,1776693038870,-201.93286099,9.018e-05,2]
[420875617,1776693038882,-290.26104003,9.018e-05,2]
[420875618,1776693038891,-500.0,9.02e-05,2]
[420875619,1776693038900,-151.0,9.02e-05,2]
[420875620,1776693038909,-952.37359688,9.022e-05,2]
[420875621,1776693038919,-250.0,9.035e-05,2]
[420875622,1776693038928,-166.41,9.035e-05,2]
[420875623,1776693038938,-49966.03005159,9.04e-05,2]
[420875624,1776693038948,-164.92,9.041e-05,2]
[420875625,1776693038957,-500.0,9.075e-05,2]
[420875626,1776693038967,-151.0,9.075e-05,2]
[420875627,1776693038977,-151.0,9.123e-05,2]
[420875628,1776693038987,-151.0,9.123e-05,2]
[420875629,1776693038996,-151.0,9.123e-05,2]
[420875630,1776693039007,-1058.91104,9.123e-05,2]
[420875631,1776693039016,-1058.91104,9.123e-05,2]
[420875632,1776693039026,-1058.91104,9.123e-05,2]
[420875633,1776693039036,-1058.91104,9.123e-05,2]
[420875634,1776693039045,-10000.0,9.123e-05,2]
[420875635,1776693039055,-255.0,9.125e-05,2]
[420875636,1776693039064,-1680.0,9.125e-05,2]
[420875637,1776693039074,-1369.78154517,9.126e-05,2]
[420875638,1776693039084,-193.0,9.126e-05,2]
[420875639,1776693039093,-193.0,9.126e-05,2]
[420875640,1776693039103,-300.0,9.126e-05,2]
[420875641,1776693039112,-3157.65866274,9.126e-05,2]
[420875642,1776693039124,-1842.34133726,9.126e-05,2]
[420875643,1776693039134,-193.0,9.126e-05,2]
[420875644,1776693039143,-5000.0,9.126e-05,2]
[420875645,1776693039153,-5000.0,9.126e-05,2]
[420875646,1776693039162,-250.0,9.126e-05,2]
[420875647,1776693039172,-164.76,9.13e-05,2]
[420875648,1776693039182,-500.0,9.13e-05,2]
[420875649,1776693039192,-151.0,9.13e-05,2]
[420875650,1776693039202,-284.66,9.135e-05,2]
[420875651,1776693039213,-150.0,9.2e-05,2]
[420875652,1776693039222,-1002.65074182,9.226e-05,2]
[420875653,1776693039232,-500.0,9.234e-05,2]
[420875654,1776693039242,-217.32642867,9.234e-05,2]
[420875655,1776693039251,-500.0,9.234e-05,2]
[420875656,1776693039261,-500.0,9.234e-05,2]
[420875657,1776693039271,-150.0,9.234e-05,2]
[420875658,1776693039281,-555.67079908,9.234e-05,2]
[420875659,1776693039291,-159.9987667,9.234e-05,2]
[420875660,1776693039301,-500.0,9.234e-05,2]
[420875661,1776693039310,-500.0,9.234e-05,2]
[420875662,1776693039325,-500.0,9.234e-05,2]
[420875663,1776693039344,-251.43631384,9.234e-05,2]
[420875664,1776693039364,-500.0,9.234e-05,2]
[420875665,1776693039374,-500.0,9.234e-05,2]
[420875666,1776693039384,-500.0,9.234e-05,2]
[420875667,1776693039394,-500.0,9.234e-05,2]
[420875668,1776693039403,-500.0,9.234e-05,2]
[420875669,1776693039413,-500.0,9.234e-05,2]
[420875670,1776693039422,-500.0,9.234e-05,2]
[420875671,1776693039432,-500.0,9.234e-05,2]
[420875672,1776693039441,-500.0,9.234e-05,2]
[420875673,1776693039451,-500.0,9.234e-05,2]
[420875674,1776693039461,-500.0,9.234e-05,2]
[420875675,1776693039471,-500.0,9.234e-05,2]
[420875676,1776693039480,-500.0,9.234e-05,2]
[420875677,1776693039490,-500.0,9.234e-05,2]
[420875678,1776693039499,-500.0,9.234e-05,2]
[420875679,1776693039509,-500.0,9.234e-05,2]
[420875680,1776693039519,-500.0,9.234e-05,2]
[420875681,1776693039529,-500.0,9.234e-05,2]
[420875682,1776693039539,-198.46692392,9.234e-05,2]
[420875683,1776693039549,-500.0,9.234e-05,2]
[420875684,1776693039559,-500.0,9.234e-05,2]
[420875685,1776693039569,-500.0,9.234e-05,2]
[420875686,1776693039579,-500.0,9.234e-05,2]
[420875687,1776693039588,-621.05125574,9.234e-05,2]
[420875688,1776693039598,-151.0,9.234e-05,2]
[420875689,1776693039608,-151.0,9.234e-05,2]
[420875690,1776693039617,-151.0,9.234e-05,2]
[420875692,1776693040048,-151.0,9.234e-05,2]
[420875693,1776693040058,-151.0,9.234e-05,2]
[420875694,1776693040067,-151.0,9.255e-05,2]
[420875695,1776693040077,-151.0,9.258e-05,2]
[420875696,1776693040087,-1207.2,9.275e-05,2]
[420875697,1776693040096,-151.0,9.287e-05,2]
[420875698,1776693040106,-1485.0367416,9.29e-05,2]
[420875699,1776693040116,-371.347384,9.391e-05,2]
[420875700,1776693040125,-845.03243,9.391e-05,2]
[420875701,1776693040135,-405.279545,9.391e-05,2]
[420875702,1776693040145,-164.76,9.422e-05,2]
[420875703,1776693040154,-500.0,9.425e-05,2]
[420875704,1776693040164,-593.54833749,9.461e-05,2]
[420875705,1776693040175,-1000.0,9.461e-05,2]
[420875706,1776693040185,-1000.0,9.461e-05,2]
[420875707,1776693040194,-1025.47467826,9.461e-05,2]
[420875708,1776693040203,-1000.0,9.521e-05,2]
[420875709,1776693040212,-500.28503073,9.521e-05,2]
[420875710,1776693040222,-811.88887855,9.521e-05,2]
[420875711,1776693040232,-500.0,9.521e-05,2]
[420875712,1776693040242,-1000.0,9.521e-05,2]
[420875713,1776693040251,-500.0,9.521e-05,2]
[420875714,1776693040260,-1207.2,9.549e-05,2]
[420875715,1776693040270,-209.40437684,9.566e-05,2]
[420875716,1776693040279,-200.0,9.566e-05,2]
[420875717,1776693040288,-1428.38747117,9.566e-05,2]
[420875718,1776693040297,-799.54513345,9.566e-05,2]
[420875719,1776693040307,-187.78006525,9.566e-05,2]
[420875720,1776693040316,-150.9516903,9.566e-05,2]
[420875721,1776693040329,-58.45268654,9.566e-05,2]